bitfinex/quotes_SOLUSD_20250507
["timestamp","ask_amount","ask_price","bid_price","bid_amount"]
[1746642558996,48.7795462,146.77,146.73,24.93271102]
[1746642559824,6.81338148,146.77,146.74,15.61345051]
[1746642561106,6.8119891,146.8,146.76,15.61345051]
[1746642561312,6.8119891,146.8,146.77,15.61345051]
[1746642561812,22.42543961,146.8,146.76,15.61345051]
[1746642562203,39.45541236,146.8,146.76,15.61345051]
[1746642565929,15.61345051,146.79,146.75,15.61345051]
[1746642566314,39.45541236,146.8,146.76,15.61345051]
[1746642567828,6.8119891,146.8,146.77,15.61345051]
[1746642569531,6.8119891,146.8,146.78,15.61345051]
[1746642570734,6.8119891,146.8,146.77,15.61345051]
[1746642570940,6.8119891,146.8,146.73,6.81523887]
[1746642571116,22.42543961,146.8,146.76,15.61345051]
[1746642571307,6.8119891,146.8,146.77,15.61345051]
[1746642571629,6.8119891,146.8,146.78,15.61345051]
[1746642571932,25.51157682,146.81,146.79,15.61345051]
[1746642574133,6.81157682,146.81,146.79,15.61345051]
[1746642575333,6.81157682,146.81,146.8,15.61345051]
[1746642576036,6.81157682,146.81,146.79,15.61345051]
[1746642577038,6.81157682,146.81,146.78,15.61345051]
[1746642579738,6.81157682,146.81,146.79,15.61345051]
[1746642582030,6.81157682,146.81,146.79,15.61345051]
[1746642582550,6.81157682,146.81,146.78,15.61345051]
[1746642583017,39.45384008,146.81,146.73,6.81523887]
[1746642583210,15.61345051,146.8,146.76,15.61345051]
[1746642583818,39.45384008,146.81,146.77,15.61345051]
[1746642584640,22.42590367,146.79,146.75,15.61345051]
[1746642584841,15.61345051,146.77,146.71,82.5]
[1746642585041,15.61345051,146.77,146.72,15.61345051]
[1746642585228,15.61345051,146.78,146.74,15.61345051]
[1746642585926,15.61345051,146.78,146.7,6.81636769]
[1746642586127,15.61345051,146.78,146.74,15.61345051]
[1746642586330,6.81338148,146.77,146.74,15.61345051]
[1746642586717,22.42683199,146.77,146.73,15.61345051]
[1746642587649,6.81338148,146.77,146.74,15.61345051]
[1746642591240,15.61345051,146.76,146.69,6.81687736]
[1746642591446,15.61345051,146.76,146.67,25.46767572]
[1746642591625,15.61345051,146.76,146.72,15.61345051]
[1746642592648,6.81431005,146.75,146.72,15.61345051]
[1746642593947,6.81431005,146.75,146.69,6.81702776]
[1746642594137,6.81431005,146.75,146.72,15.61345051]
[1746642595950,22.42776056,146.75,146.68,6.81756203]
[1746642596339,22.42776056,146.75,146.71,15.61345051]
[1746642596531,15.61345051,146.74,146.69,15.61345051]
[1746642596732,23.85008517,146.75,146.66,32.81830229]
[1746642596931,23.85008517,146.75,146.72,15.61345051]
[1746642599930,39.46353568,146.75,146.71,15.61345051]
[1746642600133,15.61345051,146.74,146.7,15.61345051]
[1746642600452,23.85008517,146.75,146.65,15.61345051]
[1746642600453,15.61345051,146.71,146.65,15.61345051]
[1746642600631,15.61345051,146.72,146.68,15.61345051]
[1746642601456,136.8,146.73,146.67,15.61345051]
[1746642601457,39.47003833,146.71,146.67,15.61345051]
[1746642601954,23.85658782,146.71,146.68,15.61345051]
[1746642602154,6.81523887,146.73,146.7,15.61345051]
[1746642602326,6.81523887,146.73,146.72,15.61345051]
[1746642602534,6.81523887,146.73,146.65,15.61345051]
[1746642602535,6.81523887,146.73,146.7,15.61345051]
[1746642602838,22.42868938,146.73,146.69,15.61345051]
[1746642603237,6.81523887,146.73,146.69,15.61345051]
[1746642603437,6.81523887,146.73,146.7,15.61345051]
[1746642603956,32.65043103,146.74,146.72,15.61345051]
[1746642603957,6.81497025,146.74,146.72,15.61345051]
[1746642604253,6.81442883,146.75,146.73,15.61345051]
[1746642604444,6.81291729,146.78,146.74,15.61345051]
[1746642604624,6.81291729,146.78,146.75,15.61345051]
[1746642605129,23.84521051,146.78,146.66,25.61030217]
[1746642605327,15.61345051,146.76,146.66,25.4681406]
[1746642605536,136.8,146.77,146.73,15.61345051]
[1746642605735,6.81384573,146.76,146.73,15.61345051]
[1746642605963,6.81384573,146.76,146.72,15.61345051]
[1746642606258,6.81384573,146.76,146.73,15.61345051]
[1746642606755,23.84846006,146.76,146.72,15.61345051]
[1746642607154,15.61345051,146.74,146.65,48.43204537]
[1746642607373,15.61345051,146.74,146.69,15.61345051]
[1746642607648,6.81477443,146.74,146.72,15.61345051]
[1746642607869,23.8517105,146.74,146.7,15.61345051]
[1746642609163,15.61345051,146.73,146.69,15.61345051]
[1746642609454,15.61345051,146.72,146.68,15.61345051]
[1746642610162,15.61345051,146.73,146.69,15.61345051]
[1746642610459,39.46516101,146.74,146.7,15.61345051]
[1746642610664,39.46516101,146.74,146.69,15.61345051]
[1746642610957,15.61345051,146.73,146.69,15.61345051]
[1746642611351,6.81570338,146.72,146.69,15.61345051]
[1746642611651,6.81570338,146.72,146.71,15.61345051]
[1746642611970,6.81570338,146.72,146.66,18.64964886]
[1746642612454,6.81570338,146.72,146.71,15.61345051]
[1746642612964,23.8517105,146.74,146.71,15.61345051]
[1746642613462,15.61345051,146.73,146.69,15.61345051]
[1746642613664,23.8517105,146.74,146.7,15.61345051]
[1746642614267,15.61345051,146.73,146.66,6.8183296]
[1746642614444,15.61345051,146.73,146.68,15.61345051]
[1746642615572,6.81570338,146.72,146.68,15.61345051]
[1746642616371,6.81570338,146.72,146.69,15.61345051]
[1746642617390,6.81570338,146.72,146.68,15.61345051]
[1746642617768,22.42915389,146.72,146.68,15.61345051]
[1746642618142,6.81570338,146.72,146.68,15.61345051]
[1746642618577,6.81570338,146.72,146.69,15.61345051]
[1746642619880,6.81570338,146.72,146.7,15.61345051]
[1746642620047,6.81570338,146.72,146.69,15.61345051]
[1746642620671,39.46841234,146.72,146.65,26.0]
[1746642620870,15.61345051,146.7,146.65,41.61345051]
[1746642621064,15.61345051,146.7,146.66,15.61345051]
[1746642621265,6.81709727,146.69,146.65,15.61345051]
[1746642621575,22.43054778,146.69,146.65,15.61345051]
[1746642621775,6.81709727,146.69,146.65,15.61345051]
[1746642621967,15.61345051,146.67,146.61,3.44284912]
[1746642622175,15.61345051,146.67,146.58,98.11345051]
[1746642622176,15.61345051,146.67,146.62,15.61345051]
[1746642622471,15.61345051,146.65,146.61,15.61345051]
[1746642622655,15.61345051,146.65,146.58,3.35346877]
[1746642622983,15.61345051,146.62,146.56,5.36302556]
[1746642623192,6.82174773,146.59,146.56,15.61345051]
[1746642623398,22.43519824,146.59,146.55,15.61345051]
[1746642623689,22.43519824,146.59,146.53,10.67605961]
[1746642623850,25.04817928,146.57,146.53,10.67605961]
[1746642624059,25.04817928,146.57,146.53,35.72423889]
[1746642624275,23.87611705,146.59,146.56,25.04817928]
[1746642624577,48.92429633,146.59,146.54,25.04817928]
[1746642624784,25.04817928,146.57,146.53,35.72423889]
[1746642625082,48.92429633,146.59,146.54,25.04817928]
[1746642625294,25.04817928,146.58,146.54,25.04817928]
[1746642625951,25.04817928,146.58,146.53,10.67605961]
[1746642626161,25.04817928,146.58,146.54,25.04817928]
[1746642627367,31.87053977,146.58,146.54,25.04817928]
[1746642627760,25.04817928,146.56,146.52,25.04817928]
[1746642628274,25.04817928,146.56,146.48,18.64964886]
[1746642628455,25.04817928,146.57,146.53,25.04817928]
[1746642628661,25.04817928,146.56,146.52,25.04817928]
[1746642628855,31.87053977,146.58,146.54,25.04817928]
[1746642629098,136.8,146.59,146.57,25.04817928]
[1746642629459,136.8,146.59,146.53,6.82447522]
[1746642629762,136.8,146.59,146.58,25.04817928]
[1746642630157,43.52817928,146.6,146.53,25.47412408]
[1746642630471,25.04817928,146.58,146.54,25.04817928]
[1746642630784,25.04817928,146.57,146.53,25.04817928]
[1746642631083,161.84817928,146.58,146.53,25.04817928]
[1746642631277,25.04817928,146.57,146.53,25.04817928]
[1746642631485,31.87118158,146.57,146.53,25.04817928]
[1746642631981,31.87118158,146.57,146.52,25.04817928]
[1746642632184,31.87118158,146.57,146.53,25.04817928]
[1746642632574,31.87118158,146.57,146.5,6.82593856]
[1746642632779,31.87118158,146.57,146.53,25.04817928]
[1746642633487,6.8230023,146.57,146.5,6.82593856]
[1746642633665,31.87118158,146.57,146.53,25.04817928]
[1746642633987,6.8230023,146.57,146.54,25.04817928]
[1746642634183,31.87118158,146.57,146.53,25.04817928]
[1746642635288,6.8230023,146.57,146.53,25.04817928]
[1746642635583,31.87118158,146.57,146.53,25.04817928]
[1746642636277,25.04817928,146.56,146.52,25.04817928]
[1746642637168,6.8230023,146.57,146.5,6.82576855]
[1746642637375,25.04817928,146.56,146.52,25.04817928]
[1746642637580,31.87152897,146.56,146.52,25.04817928]
[1746642637775,6.82334969,146.56,146.53,25.04817928]
[1746642637986,136.8,146.58,146.55,25.04817928]
[1746642638289,143.62231992,146.58,146.52,18.64964886]
[1746642638584,143.62225485,146.58,146.56,25.04817928]
[1746642638766,143.62225485,146.58,146.55,25.04817928]
[1746642639486,168.67043413,146.58,146.5,6.82576855]
[1746642639790,6.8231441,146.56,146.53,25.04817928]
[1746642640089,31.87132338,146.56,146.48,44.64964886]
[1746642640390,25.04817928,146.53,146.49,25.04817928]
[1746642640972,161.84817928,146.55,146.51,25.04817928]
[1746642641166,136.8,146.54,146.52,25.04817928]
[1746642641488,25.30139724,146.6,146.53,25.04817928]
[1746642641693,25.30139724,146.6,146.59,25.04817928]
[1746642641881,25.30139724,146.6,146.58,25.04817928]
[1746642642081,25.30139724,146.6,146.54,25.47358476]
[1746642642283,25.30139724,146.6,146.58,25.04817928]
[1746642643210,25.30139724,146.6,146.51,25.04817928]
[1746642643379,25.30139724,146.6,146.56,25.04817928]
[1746642643579,50.34957652,146.6,146.56,25.04817928]
[1746642644395,25.04817928,146.59,146.51,25.04817928]
[1746642644579,161.84817928,146.59,146.55,25.04817928]
[1746642645276,136.8,146.59,146.56,25.04817928]
[1746642645500,161.84817928,146.59,146.55,25.04817928]
[1746642645803,25.04817928,146.58,146.5,44.64964886]
[1746642646003,25.04817928,146.58,146.53,25.04817928]
[1746642646379,31.87085786,146.57,146.5,18.64964886]
[1746642646580,31.87085786,146.57,146.52,25.04817928]
[1746642646875,48.92755431,146.57,146.52,25.04817928]
[1746642647083,25.04817928,146.56,146.52,25.04817928]
[1746642647590,25.04817928,146.55,146.51,25.04817928]
[1746642647791,25.04817928,146.54,146.5,25.04817928]
[1746642647987,25.04817928,146.52,146.48,25.04817928]
[1746642648194,25.04817928,146.51,146.47,25.04817928]
[1746642648393,6.82593856,146.5,146.47,25.04817928]
[1746642648592,6.82593856,146.5,146.46,25.04817928]
[1746642649100,6.82593856,146.5,146.47,25.04817928]
[1746642649295,48.93896425,146.5,146.46,25.04817928]
[1746642649916,23.89078497,146.5,146.46,25.04817928]
[1746642650088,23.89078497,146.5,146.47,25.04817928]
[1746642650408,48.93896425,146.5,146.46,25.04817928]
[1746642650799,31.87411784,146.5,146.46,25.04817928]
[1746642650997,6.82593856,146.5,146.47,25.04817928]
[1746642651220,143.62566909,146.51,146.48,25.04817928]
[1746642651420,143.62566909,146.51,146.49,25.04817928]
[1746642651630,136.8,146.51,146.5,25.04817928]
[1746642651833,155.22,146.54,146.5,25.04817928]
[1746642652006,155.22,146.54,146.45,44.64964886]
[1746642652210,25.04817928,146.53,146.45,44.64964886]
[1746642652438,25.04817928,146.51,146.47,25.04817928]
[1746642653728,6.82500682,146.52,146.49,25.04817928]
[1746642653917,6.82500682,146.52,146.5,25.04817928]
[1746642654119,6.82500682,146.52,146.49,25.04817928]
[1746642654635,6.82500682,146.52,146.5,25.04817928]
[1746642654840,143.62470647,146.53,146.51,25.04817928]
[1746642655008,136.8,146.53,146.52,25.04817928]
[1746642655209,143.62456476,146.53,146.51,25.04817928]
[1746642655405,136.8,146.53,146.51,25.04817928]
[1746642655605,18.42,146.54,146.52,25.04817928]
[1746642655806,18.42,146.54,146.53,25.04817928]
[1746642657109,25.24407533,146.54,146.53,25.04817928]
[1746642657836,25.24407533,146.54,146.52,25.04817928]
[1746642658036,17.05559085,146.58,146.52,25.04817928]
[1746642658226,6.82267858,146.57,146.56,25.04817928]
[1746642658433,6.82267858,146.57,146.54,25.04817928]
[1746642658730,48.92598325,146.58,146.54,25.04817928]
[1746642659117,23.87780397,146.58,146.54,25.04817928]
[1746642659318,48.92598325,146.58,146.54,25.04817928]
[1746642659541,48.92598325,146.58,146.49,18.64964886]
[1746642659542,23.87780397,146.58,146.55,25.04817928]
[1746642659834,23.87780397,146.58,146.54,25.04817928]
[1746642659835,48.92598325,146.58,146.54,25.04817928]
[1746642660211,23.87780397,146.58,146.54,25.04817928]
[1746642661232,188.04193932,146.59,146.57,25.04817928]
[1746642661433,187.0901186,146.59,146.55,25.04817928]
[1746642662136,162.04193932,146.59,146.55,25.04817928]
[1746642662476,25.24193932,146.59,146.58,25.04817928]
[1746642662745,18.42,146.59,146.58,25.04817928]
[1746642663538,143.61961172,146.64,146.58,56.91846597]
[1746642663839,143.61961172,146.64,146.63,25.04817928]
[1746642664039,44.42,146.67,146.63,25.04817928]
[1746642664214,25.23821712,146.67,146.65,25.04817928]
[1746642664414,6.81821712,146.67,146.65,25.04817928]
[1746642665030,6.81756203,146.68,146.65,25.04817928]
[1746642666423,31.86574131,146.68,146.64,25.04817928]
[1746642667053,25.04817928,146.67,146.63,25.04817928]
[1746642667228,25.04817928,146.65,146.58,26.0]
[1746642667425,25.04817928,146.65,146.57,25.04817928]
[1746642667426,25.04817928,146.62,146.57,25.04817928]
[1746642667636,25.04817928,146.6,146.56,25.04817928]
[1746642667848,25.04817928,146.61,146.57,25.04817928]
[1746642668348,162.8,146.64,146.59,25.04817928]
[1746642668652,25.04817928,146.63,146.59,25.04817928]
[1746642668946,162.8,146.64,146.59,25.04817928]
[1746642669162,6.81988678,146.63,146.61,25.04817928]
[1746642669665,143.619483,146.64,146.62,25.04817928]
[1746642669841,6.819483,146.64,146.62,25.04817928]
[1746642670653,6.819483,146.64,146.58,25.04817928]
[1746642670654,6.81895669,146.65,146.63,25.04817928]
[1746642670956,161.84817928,146.69,146.64,25.04817928]
[1746642671150,187.84817928,146.69,146.64,25.04817928]
[1746642671366,48.9096464,146.68,146.64,25.04817928]
[1746642671526,23.86146712,146.68,146.64,25.04817928]
[1746642671834,23.86146712,146.68,146.6,25.47089214]
[1746642671835,6.81756203,146.68,146.67,25.04817928]
[1746642672151,6.81663258,146.7,146.67,25.04817928]
[1746642672856,6.81663258,146.7,146.68,25.04817928]
[1746642673355,155.14,146.71,146.65,18.64964886]
[1746642673356,143.61628583,146.71,146.69,25.04817928]
[1746642673551,6.81628583,146.71,146.69,25.04817928]
[1746642674157,6.81628583,146.71,146.68,25.04817928]
[1746642674358,6.81570338,146.72,146.69,25.04817928]
[1746642674655,6.81570338,146.72,146.7,25.04817928]
[1746642674851,6.81570338,146.72,146.66,0.14216157]
[1746642675066,6.81570338,146.72,146.69,25.04817928]
[1746642675626,6.81570338,146.72,146.7,25.04817928]
[1746642676226,6.81570338,146.72,146.69,25.04817928]
[1746642676444,48.90314111,146.72,146.68,25.04817928]
[1746642676639,25.04817928,146.71,146.67,25.04817928]
[1746642677050,25.04817928,146.71,146.66,25.04817928]
[1746642677490,25.04817928,146.71,146.65,25.04817928]
[1746642677491,25.04817928,146.7,146.65,25.04817928]
[1746642677670,25.04817928,146.68,146.63,25.04817928]
[1746642678139,25.04817928,146.68,146.64,25.04817928]
[1746642678338,25.04817928,146.69,146.64,25.04817928]
[1746642678541,162.8,146.71,146.66,25.04817928]
[1746642678761,51.04817928,146.71,146.67,25.04817928]
[1746642679066,51.04817928,146.71,146.65,25.04817928]
[1746642679067,25.04817928,146.69,146.65,25.04817928]
[1746642679636,6.81756203,146.68,146.65,25.04817928]
[1746642680160,31.86574131,146.68,146.61,26.0]
[1746642680338,25.04817928,146.65,146.61,25.04817928]
[1746642680541,25.04817928,146.64,146.6,25.04817928]
[1746642680844,25.04817928,146.64,146.59,25.04817928]
[1746642681047,25.04817928,146.64,146.6,25.04817928]
[1746642681639,6.81988678,146.63,146.6,25.04817928]
[1746642681839,48.91778303,146.63,146.59,25.04817928]
[1746642682542,6.81988678,146.63,146.59,25.04817928]
[1746642682754,6.81988678,146.63,146.6,25.04817928]
[1746642683166,6.81988678,146.63,146.59,25.04817928]
[1746642683463,25.04817928,146.62,146.58,25.04817928]
[1746642683763,6.82046992,146.62,146.59,25.04817928]
[1746642684464,6.82046992,146.62,146.58,25.04817928]
[1746642684658,168.6686492,146.62,146.57,25.04817928]
[1746642684986,143.62046992,146.62,146.58,25.04817928]
[1746642685151,143.62046992,146.62,146.6,25.04817928]
[1746642685348,26.77789822,146.64,146.61,25.04817928]
[1746642685555,51.8260775,146.64,146.6,25.04817928]
[1746642685850,25.04817928,146.63,146.59,25.04817928]
[1746642686844,6.82035193,146.62,146.59,25.04817928]
[1746642687239,19.9583,146.64,146.61,25.04817928]
[1746642687445,18.34,146.64,146.63,25.04817928]
[1746642687867,143.61862088,146.66,146.63,25.04817928]
[1746642688053,143.61862088,146.66,146.64,25.04817928]
[1746642688553,143.61862088,146.66,146.63,25.04817928]
[1746642689371,143.61862088,146.66,146.64,25.04817928]
[1746642689673,143.61862088,146.66,146.63,25.04817928]
[1746642690174,143.61862088,146.66,146.58,25.04817928]
[1746642690175,25.04817928,146.65,146.61,25.04817928]
[1746642690352,23.86485025,146.66,146.59,18.64964886]
[1746642690555,23.86485025,146.66,146.63,25.04817928]
[1746642691280,23.86485025,146.66,146.58,25.04817928]
[1746642691572,23.86485025,146.66,146.6,25.04817928]
[1746642691773,25.04817928,146.65,146.6,25.04817928]
[1746642691957,25.04817928,146.64,146.6,25.04817928]
[1746642692346,25.04817928,146.65,146.6,25.04817928]
[1746642693178,23.86485025,146.66,146.6,25.04817928]
[1746642693361,23.86485025,146.66,146.62,25.04817928]
[1746642693554,48.91302953,146.66,146.61,25.04817928]
[1746642693753,25.04817928,146.65,146.61,25.04817928]
[1746642694472,48.91302953,146.66,146.62,25.04817928]
[1746642694770,25.04817928,146.63,146.59,25.04817928]
[1746642694992,6.81862088,146.66,146.62,25.04817928]
[1746642695156,143.61819505,146.67,146.65,25.04817928]
[1746642695356,1.628,146.68,146.65,25.04817928]
[1746642695357,8.44559966,146.68,146.65,25.04817928]
[1746642695562,8.44559966,146.68,146.67,25.04817928]
[1746642695767,18.34,146.69,146.67,25.04817928]
[1746642695970,6.81693103,146.7,146.68,25.04817928]
[1746642696385,23.85851248,146.7,146.66,25.04817928]
[1746642696568,48.90669176,146.7,146.66,25.04817928]
[1746642698168,25.04817928,146.69,146.65,25.04817928]
[1746642698485,48.90669176,146.7,146.66,25.04817928]
[1746642698976,48.90669176,146.7,146.62,51.46994458]
[1746642698977,23.85851248,146.7,146.67,25.04817928]
[1746642699292,6.81693103,146.7,146.66,25.04817928]
[1746642699476,31.86511031,146.7,146.66,25.04817928]
[1746642699873,6.81693103,146.7,146.67,25.04817928]
[1746642700073,6.81693103,146.7,146.68,25.04817928]
[1746642700988,6.81616795,146.71,146.67,25.04817928]
[1746642701170,6.81616795,146.71,146.68,25.04817928]
[1746642701492,31.86434723,146.71,146.67,25.04817928]
[1746642702291,6.81616795,146.71,146.67,25.04817928]
[1746642702591,25.04817928,146.69,146.65,25.04817928]
[1746642702788,25.04817928,146.69,146.64,25.04817928]
[1746642703093,6.81756203,146.68,146.64,25.04817928]
[1746642703294,6.81756203,146.68,146.65,25.04817928]
[1746642703484,6.81756203,146.68,146.66,25.04817928]
[1746642704391,6.81756203,146.68,146.67,25.04817928]
[1746642704596,6.81756203,146.68,146.66,25.04817928]
[1746642704788,6.81756203,146.68,146.67,25.04817928]
[1746642705296,6.81709727,146.69,146.67,25.04817928]
[1746642705796,6.81709727,146.69,146.66,25.04817928]
[1746642706171,31.86527655,146.69,146.65,25.04817928]
[1746642706588,6.81709727,146.69,146.66,25.04817928]
[1746642708387,143.616845,146.7,146.67,25.04817928]
[1746642708589,6.816845,146.7,146.67,25.04817928]
[1746642709275,6.81636898,146.71,146.68,25.04817928]
[1746642709673,31.86388266,146.72,146.68,25.04817928]
[1746642709878,25.04817928,146.71,146.67,25.04817928]
[1746642710577,31.86388266,146.72,146.68,25.04817928]
[1746642712298,6.81570338,146.72,146.69,25.04817928]
[1746642713177,31.86388266,146.72,146.68,25.04817928]
[1746642713378,25.04817928,146.71,146.67,25.04817928]
[1746642714201,25.04817928,146.71,146.64,44.64964886]
[1746642714202,25.04817928,146.7,146.66,25.04817928]
[1746642714399,31.86527655,146.69,146.65,25.04817928]
[1746642714701,6.81671946,146.7,146.67,25.04817928]
[1746642714886,6.81671946,146.7,146.68,25.04817928]
[1746642715803,6.81637714,146.71,146.69,25.04817928]
[1746642715995,6.81581285,146.72,146.69,25.04817928]
[1746642716189,6.81581285,146.72,146.68,25.04817928]
[1746642716383,25.04817928,146.7,146.66,25.04817928]
[1746642716690,23.8550713,146.72,146.67,25.04817928]
[1746642716892,25.04817928,146.71,146.67,25.04817928]
[1746642717393,25.04817928,146.7,146.66,25.04817928]
[1746642717702,25.04817928,146.71,146.66,25.04817928]
[1746642718291,25.04817928,146.69,146.65,25.04817928]
[1746642718800,23.85821403,146.7,146.64,25.04817928]
[1746642719001,25.04817928,146.69,146.65,25.04817928]
[1746642720104,6.81756203,146.68,146.65,25.04817928]
[1746642720789,25.04817928,146.7,146.66,25.04817928]
[1746642720989,6.81683853,146.7,146.68,25.04817928]
[1746642721205,136.8,146.71,146.68,25.04817928]
[1746642721506,136.8,146.71,146.65,43.69782814]
[1746642721507,136.8,146.71,146.7,25.04817928]
[1746642721708,8.47532209,146.73,146.7,25.04817928]
[1746642722004,6.81552209,146.73,146.71,25.04817928]
[1746642722204,25.1549427,146.74,146.71,25.04817928]
[1746642722387,50.20312198,146.74,146.7,25.04817928]
[1746642722588,50.20312198,146.74,146.69,25.04817928]
[1746642722786,50.20312198,146.74,146.7,25.04817928]
[1746642722986,67.24005805,146.74,146.69,25.04817928]
[1746642723311,67.24005805,146.74,146.7,25.04817928]
[1746642723611,25.04817928,146.73,146.69,25.04817928]
[1746642723993,42.19187877,146.74,146.7,25.04817928]
[1746642725107,42.19187877,146.74,146.71,25.04817928]
[1746642725313,42.19187877,146.74,146.7,25.04817928]
[1746642725507,67.24005805,146.74,146.7,25.04817928]
[1746642725888,50.20312198,146.74,146.7,25.04817928]
[1746642726402,6.81439007,146.75,146.69,18.64964886]
[1746642726711,6.81400163,146.76,146.74,25.04817928]
[1746642726909,8.1691,146.81,146.72,43.69782814]
[1746642727119,8.1691,146.81,146.78,25.04817928]
[1746642727287,33.21727928,146.81,146.77,25.04817928]
[1746642727809,1.603,146.81,146.79,25.04817928]
[1746642728185,1.603,146.81,146.77,6.81316447]
[1746642728186,8.4145394,146.81,146.78,25.04817928]
[1746642728587,8.4145394,146.81,146.79,25.04817928]
[1746642728789,8.4145394,146.81,146.78,25.04817928]
[1746642729089,8.4145394,146.81,146.76,6.81370943]
[1746642729090,25.04817928,146.83,146.79,25.04817928]
[1746642729489,6.81013347,146.84,146.79,25.04817928]
[1746642729699,6.81013347,146.84,146.8,25.04817928]
[1746642730105,6.81013347,146.84,146.79,25.04817928]
[1746642730106,25.04817928,146.83,146.79,25.04817928]
[1746642730304,31.85831275,146.84,146.8,25.04817928]
[1746642730519,6.81013347,146.84,146.82,25.04817928]
[1746642730708,6.81013347,146.84,146.81,25.04817928]
[1746642730914,31.85831275,146.84,146.8,25.04817928]
[1746642731215,6.81013347,146.84,146.8,25.04817928]
[1746642731415,31.85831275,146.84,146.78,6.81254157]
[1746642731613,25.04817928,146.83,146.79,25.04817928]
[1746642731919,31.85831275,146.84,146.8,25.04817928]
[1746642732310,6.81013347,146.84,146.8,25.04817928]
[1746642732514,6.81013347,146.84,146.81,25.04817928]
[1746642733209,6.81013347,146.84,146.78,43.69782814]
[1746642733210,25.04817928,146.82,146.78,43.69782814]
[1746642733398,25.04817928,146.83,146.79,25.04817928]
[1746642733593,6.81013347,146.84,146.79,25.04817928]
[1746642733793,19.7716,146.85,146.82,25.04817928]
[1746642734017,6.809257,146.86,146.82,25.04817928]
[1746642734018,31.85743628,146.86,146.82,25.04817928]
[1746642734218,32.8084589,146.88,146.84,25.04817928]
[1746642734424,6.8084589,146.88,146.84,25.04817928]
[1746642734627,31.85663818,146.88,146.84,25.04817928]
[1746642734917,6.8084589,146.88,146.84,25.04817928]
[1746642736012,6.80788437,146.89,146.87,25.04817928]
[1746642736319,31.85567651,146.9,146.86,25.04817928]
[1746642736524,23.82344205,146.92,146.87,25.04817928]
[1746642736822,6.80642526,146.92,146.87,25.04817928]
[1746642737118,8.3646253,146.93,146.9,25.04817928]
[1746642737320,25.04817928,146.92,146.87,18.64964886]
[1746642737535,25.04817928,146.91,146.87,25.04817928]
[1746642738113,8.3646253,146.93,146.88,25.04817928]
[1746642738306,33.41280458,146.93,146.89,25.04817928]
[1746642738518,50.09354511,146.95,146.91,25.04817928]
[1746642738713,25.04536583,146.95,146.92,25.04817928]
[1746642739022,39.60188915,146.97,146.9,18.64964886]
[1746642739333,14.55370987,146.97,146.93,25.04817928]
[1746642739529,39.60188915,146.97,146.92,25.04817928]
[1746642739704,25.04817928,146.96,146.92,25.04817928]
[1746642739906,14.55370987,146.97,146.92,25.04817928]
[1746642740409,25.04817928,146.96,146.92,25.04817928]
[1746642740606,6.80503572,146.95,146.86,26.0]
[1746642740807,6.80503572,146.95,146.88,25.04817928]
[1746642741014,23.81762503,146.95,146.9,25.04817928]
[1746642741198,25.04817928,146.94,146.9,25.04817928]
[1746642741400,25.04817928,146.93,146.89,25.04817928]
[1746642741600,23.81762503,146.95,146.87,18.64964886]
[1746642741914,48.86580431,146.95,146.9,25.04817928]
[1746642742221,25.04817928,146.94,146.9,25.04817928]
[1746642742537,6.80596202,146.93,146.9,25.04817928]
[1746642742708,6.80596202,146.93,146.8,82.5]
[1746642742709,25.04817928,146.91,146.8,82.5]
[1746642743025,25.04817928,146.88,146.84,25.04817928]
[1746642743221,25.04817928,146.88,146.81,18.64964886]
[1746642743423,25.04817928,146.86,146.82,43.69782814]
[1746642743624,25.04817928,146.86,146.82,25.04817928]
[1746642743829,25.04817928,146.86,146.81,25.04817928]
[1746642744003,25.04817928,146.86,146.82,25.04817928]
[1746642744502,23.82897602,146.88,146.8,18.64964886]
[1746642744852,23.82897602,146.88,146.82,25.04817928]
[1746642745138,48.8771553,146.88,146.84,25.04817928]
[1746642745433,23.82897602,146.88,146.83,25.04817928]
[1746642745623,48.8771553,146.88,146.83,25.04817928]
[1746642745806,23.82897602,146.88,146.84,25.04817928]
[1746642746006,48.8771553,146.88,146.84,25.04817928]
[1746642746930,48.8771553,146.88,146.8,18.64964886]
[1746642747131,48.8771553,146.88,146.84,25.04817928]
[1746642747718,6.80827886,146.88,146.87,25.04817928]
[1746642747914,178.86651186,146.91,146.87,43.69782814]
[1746642747915,6.80735194,146.9,146.87,43.69782814]
[1746642748234,6.80735194,146.9,146.89,25.04817928]
[1746642748526,6.80457267,146.96,146.9,18.64964886]
[1746642748936,23.81600435,146.96,146.9,18.64964886]
[1746642749229,25.04817928,146.93,146.85,18.79181043]
[1746642749428,25.04817928,146.93,146.89,25.04817928]
[1746642749613,25.04817928,146.94,146.9,25.04817928]
[1746642750821,25.04817928,146.92,146.88,25.04817928]
[1746642751010,23.82410999,146.91,146.88,25.04817928]
[1746642751725,23.82410999,146.91,146.89,25.04817928]
[1746642753029,6.80688857,146.91,146.89,25.04817928]
[1746642753204,6.80642526,146.92,146.89,25.04817928]
[1746642754134,23.82248842,146.92,146.89,25.04817928]
[1746642754337,48.8706677,146.92,146.88,25.04817928]
[1746642754638,25.04817928,146.9,146.85,44.64964886]
[1746642754808,25.04817928,146.89,146.85,25.04817928]